Cogmind - Beta 16.1 @@@ ROGUE MODE // 2026.04.09 @ 04:30:54 Player: KURIIRI Result: Destroyed by P-80 Master with Gamma Rifle Performance ------------- Evolutions (8) 4000 Regions Visited (24) 4800 Robots Destroyed (319) 1595 Value Destroyed (14638) 14638 Prototype IDs (55) 1100 Alien Tech Used (5) 1000 Bonus (10542) 10542 TOTAL SCORE: 37675 Bonus ------- Triggered High Security 500 High Alert Combat Kills 2095 Follower Combat Kills 3269 Hunted by Unchained 500 Entered Garrisons 400 Used RIF Installer 1000 Network Hubs Disabled 200 Registered with UFD 300 Met Optimus in HQ 500 Built Enhanced Grunts 300 Met R17 at Cetus 500 Met R17 at Research 2000 Friendly Fire -1022 Cogmind --------- Core Integrity 0/1450 Matter 258/300 Energy 77/100 System Corruption 18% Temperature Cool (2) Movement Flying (35) Location -2/Research Parts ------- > --- POWER (2) -------- (None) > --- PROPULSION (8) --- Cooled Impulse Thruster Cooled Impulse Thruster > --- UTILITY (10) ----- Spectral Analyzer Advanced System Shield > --- WEAPON (3) ------- (None) > --- INVENTORY (5) ---- (None) Peak State ------------ > --- POWER ------------ Light Particle Reactor Light Particle Reactor > --- PROPULSION ------- Antigrav System Improved Linear Gravjet Improved Linear Gravjet Antigrav Array Antigrav Array > --- UTILITY ---------- Advanced Heat Sink Large Storage Unit Long-range Sensor Array Advanced Signal Interpreter Long-range Terrain Scanner Improved Propulsion Shielding Centrium Medium Armor Plating Improved Hacking Suite Advanced Hacking Suite > --- WEAPON ----------- Enhanced Nova Cannon Enhanced Nova Cannon Heavy Shock Bomb Launcher > --- INVENTORY -------- Improved Linear Gravjet Improved Linear Gravjet Advanced Heat Sink Advanced Energy Well Quantum Capacitor Advanced Phase Shifter Improved Cloaking Device Centrium Medium Armor Plating Centrium Medium Armor Plating Advanced Point Defense System HERF Cannon Fusion Bomb Launcher [Rating: 149] Favorites ----------- Power Ion Engine Engine Ion Engine Power Core Neutrino Core Reactor Light Particle Reactor Propulsion Antigrav System Treads Centrium Heavy Treads Leg Carbon-fiber Leg Wheel Armored Wheel Hover Unit Antigrav System Flight Unit Impulse Thruster Array Utility Improved Hacking Suite Device Advanced Heat Sink Storage High-capacity Storage Unit Processor Experimental Signal Interpreter Hackware Improved Hacking Suite Protection Centrium Medium Armor Plating Artifact Phase Armor Weapon Advanced Plasma Cannon Energy Gun Gatling Laser Energy Cannon Advanced Plasma Cannon Ballistic Gun Coil Gun Ballistic Cannon Magnetic Acceleration Cannon Launcher Proton Missile Launcher Special Weapon Multitool Impact Weapon Powered Hammer Slashing Weapon Phasing Sabre Special Melee Weapon Datajack Build | -11 -10 -10 -9 -9 -6 -6 -6 -6 -6 -6 -5 -5 -5 -5 -4 -4 -4 -4 -4 -4 -3 -3 -3 -2 ------- Run | Yrd Mat Sub Rec Scr Fac Gar Ext Cet Arc Hub Fac Was Fac Gar Fac Was Fac Upp Upp War Pro Res Qua Res Slots Evolved 16 | . . . . . 8 . . . . . 2 . . . 2 . . . . . . 2 . 2 Power 1 | . . . . . . . . . . . . . . . 1 . . . . . . . . . Propulsion 6 | . . . . . 2 . . . . . 2 . . . 1 . . . . . . . . 1 Utility 8 | . . . . . 5 . . . . . . . . . . . . . . . . 2 . 1 Weapon 1 | . . . . . 1 . . . . . . . . . . . . . . . . . . . Parts Attached 348 | 2 12 13 2 1 42 4 31 5 9 1 16 3 40 13 39 6 13 3 2 1 1 70 7 12 Power 38 | . . 3 . . 5 . 2 . 1 . . . 4 1 5 2 2 . . . 1 9 1 2 Engine 10 | . . 3 . . 2 . . . . . . . . 1 4 . . . . . . . . . Core 15 | . . . . . 3 . 2 . 1 . . . 4 . 1 1 2 . . . 1 . . . Reactor 13 | . . . . . . . . . . . . . . . . 1 . . . . . 9 1 2 Propulsion 115 | 2 2 3 1 . 8 2 11 2 . . 9 . 15 2 16 . 2 1 . 1 . 31 1 6 Treads 13 | 2 . . . . 2 . . 2 . . . . . 2 2 . . . . . . 3 . . Leg 27 | . . . . . 4 2 11 . . . . . . . . . . . . . . 10 . . Wheel 7 | . 2 3 1 . 1 . . . . . . . . . . . . . . . . . . . Hover 57 | . . . . . 1 . . . . . 9 . 15 . 14 . 2 1 . 1 . 10 . 4 Flight 11 | . . . . . . . . . . . . . . . . . . . . . . 8 1 2 Utility 125 | . 5 . 1 1 14 . 15 3 7 1 3 2 13 8 12 3 7 2 2 . . 23 2 1 Device 74 | . 3 . . . 8 . 8 1 5 . 2 1 10 4 9 3 4 2 2 . . 11 . 1 Storage 6 | . 1 . . 1 . . . . . . . . . . 2 . 1 . . . . 1 . . Processor 9 | . . . . . 2 . . . . . . . 2 2 . . 1 . . . . 1 1 . Hackware 14 | . . . . . 2 . 2 . 2 1 . 1 . 1 1 . 1 . . . . 3 . . Protection 21 | . 1 . 1 . 2 . 5 2 . . 1 . 1 1 . . . . . . . 7 . . Artifact 1 | . . . . . . . . . . . . . . . . . . . . . . . 1 . Weapon 70 | . 5 7 . . 15 2 3 . 1 . 4 1 8 2 6 1 2 . . . . 7 3 3 Energy Gun 8 | . . 1 . . 3 . . . . . . . . . . . . . . . . 1 . 3 Energy Cannon 35 | . 2 4 . . 5 . 1 . . . 3 . 5 1 4 . 2 . . . . 5 3 . Ballistic Gun 8 | . 1 2 . . 5 . . . . . . . . . . . . . . . . . . . Ballistic Cannon 4 | . . . . . . 1 2 . . . 1 . . . . . . . . . . . . . Launcher 5 | . 1 . . . . . . . . . . . 2 . 1 . . . . . . 1 . . Special Weapon 4 | . . . . . . 1 . . . . . 1 . . 1 1 . . . . . . . . Impact Weapon 2 | . . . . . 1 . . . . . . . 1 . . . . . . . . . . . Slashing Weapon 3 | . . . . . 1 . . . 1 . . . . 1 . . . . . . . . . . Piercing Weapon . | . . . . . . . . . . . . . . . . . . . . . . . . . Special Melee Weapon 1 | . 1 . . . . . . . . . . . . . . . . . . . . . . . Unidentified Prototypes 29 | . . . . . 1 . . 2 1 . 1 1 2 1 6 1 1 . . . . 5 5 2 Corrupted Parts 2 | . . . . . . . . . . . . . . . . . . . . . 1 . . 1 System Corruption 7 | . . . . . . . . . . . . . . . . . . . . . 2 . . 5 Parts Lost 114 | . 1 6 1 . 17 4 4 1 . 1 4 . 12 4 2 . 5 1 2 . 6 17 1 25 Power 17 | . . 2 . . 3 . 1 . . . . . 2 1 . . 1 1 . . 1 1 1 3 Propulsion 49 | . 1 1 1 . 5 1 1 . . . 2 . 9 3 2 . 2 . 1 . 2 9 . 9 Utility 33 | . . 1 . . 6 3 1 1 . 1 1 . 1 . . . 2 . . . 2 5 . 9 Weapon 15 | . . 2 . . 3 . 1 . . . 1 . . . . . . . 1 . 1 2 . 4 Highest Loss Streak 15 | . 1 3 1 . 8 2 2 1 . 1 3 . 4 2 1 . 4 1 2 . 4 8 1 15 To Critical Strikes 1 | . . . . . . . . . . . . . . . . . . . 1 . . . . . Average Backups 17 | 6 17 23 21 17 16 17 19 17 19 20 16 18 18 19 16 14 14 12 12 11 10 12 4 3 Power 1 | 1 2 1 1 . . 1 1 1 1 2 2 2 1 . . . . . . . . . . . Propulsion 2 | 4 2 3 3 1 2 3 3 4 5 7 2 2 1 3 3 2 2 1 1 . . 1 1 2 Utility 7 | . 7 10 10 9 7 5 6 7 7 7 7 7 9 8 6 7 8 7 7 7 7 8 1 . Weapon 4 | 1 5 5 4 3 6 6 6 4 2 2 2 5 4 4 4 3 3 4 4 4 3 2 1 . Tool/Special . | . . . . . . . . . . . . . . . . . . . . . . . . . Unused Backups 72 | . 7 9 2 11 7 . . 3 6 1 1 . 5 3 6 . 2 . . . . 5 3 1 Power 7 | . 1 2 . 1 . . . 1 . . . . 1 1 . . . . . . . . . . Propulsion 13 | . . 1 . 2 . . . 1 2 1 . . . . 3 . 1 . . . . 1 . 1 Utility 31 | . 5 4 . 4 5 . . 1 2 . . . 3 1 3 . 1 . . . . 2 . . Weapon 17 | . 1 2 2 4 2 . . . 2 . . . 1 1 . . . . . . . 2 . . Tool/Special 4 | . . . . . . . . . . . 1 . . . . . . . . . . . 3 . Average Slot Usage (%) 91 | . 99 95 94 100 86 73 96 96 85 85 95 99 97 83 94 99 99 93 87 82 81 85 76 48 Engine 4 | . 14 13 14 14 3 . . . . . . . . . 6 4 4 . . . . . . . Core 2 | . . . . . 2 6 5 6 6 6 5 5 5 4 2 4 5 4 . . 2 . . . Treads 3 | . 16 5 . . 3 2 . 3 13 13 . . . 4 1 . . . . . . . . . Leg 3 | . . . . . 5 15 24 19 . . . . . . . . . . . . . 8 . . Wheel 6 | . 11 20 28 28 10 . . . . . . . . . . . . . . . . . . . Hover 12 | . . . . . . . . . . . 33 35 32 18 31 36 35 35 35 34 29 16 3 3 Device 10 | . 12 12 . . 12 10 21 13 7 10 2 5 9 5 10 9 10 5 5 10 9 15 18 8 Storage 8 | . 14 14 14 14 5 6 6 6 6 6 5 5 5 5 5 5 5 10 10 10 10 4 . . Processor 5 | . . . . . 10 10 6 6 6 6 5 5 5 10 10 10 9 10 10 10 9 4 9 7 Hackware 5 | . . . . . 7 2 2 7 11 14 16 16 11 5 5 5 5 5 5 5 5 6 14 7 Protection 5 | . . . 8 14 3 . 7 11 13 6 5 5 5 4 4 5 4 5 4 . . 6 . 2 Energy Gun 1 | . 1 3 . . 1 5 5 . . . . . . . . . . . . . . . . 2 Energy Cannon 14 | . 22 23 28 28 3 9 6 6 6 3 1 11 16 13 13 15 13 15 14 10 12 9 3 2 Ballistic Cannon 1 | . . . . . . 2 6 12 6 6 8 . . . . . . . . . . . . . Peak Build Rating 149 | 6 13 19 17 19 88 74 78 104 108 107 106 102 110 111 122 130 122 114 111 98 98 149 146 136 Average Rating 75 | 5 10 16 15 17 64 67 65 91 106 101 92 94 100 99 114 121 118 111 106 96 96 129 125 95 On Entrance 78 | 6 6 13 14 17 19 71 60 78 104 107 98 93 94 106 110 122 121 108 109 92 98 81 118 127 Avg Prop Armor Cover (%) 7 | . 11 8 . . 6 8 5 . . . . . 9 5 . . . 5 13 15 15 4 5 8 Naked Turns . | . . . . . . . . . . . . . . . . . . . . . . . . . Heaviest Build 113 | 14 92 102 106 106 84 72 85 92 92 81 87 87 87 93 91 97 85 66 61 53 78 113 43 37 Greatest Support 255 | 40 40 22 24 24 90 85 85 160 160 160 62 62 80 230 255 90 90 90 75 63 62 150 61 61 Greatest Overweight (x) 28 | . 9 8 4 4 4 1 2 1 . . 1 1 27 1 1 1 1 2 4 2 2 28 2 3 Average Overweight (x) 1 | . 6 7 4 2 . . . . . . 1 1 1 . . . . . 1 1 1 . . . Largest Inventory Capacity 25 | 8 25 25 25 25 20 20 20 20 20 20 20 20 20 20 20 15 15 15 15 15 15 15 5 5 Average Capacity 19 | 8 21 25 25 22 20 20 20 20 20 20 20 20 20 20 17 15 15 15 15 15 15 14 5 5 Most Carried 25 | 6 25 25 25 23 20 19 20 20 20 20 20 20 20 20 20 15 15 15 15 15 14 15 5 5 Average Carried 18 | 5 17 24 23 19 18 17 19 19 19 20 18 19 19 19 16 13 14 14 15 14 13 13 4 3 Final Capacity 25 | 8 25 25 25 20 20 20 20 20 20 20 20 20 20 20 15 15 15 15 15 15 15 5 5 5 Final Carried 25 | 4 25 25 23 20 16 19 20 16 20 20 20 20 19 20 15 13 13 15 15 14 13 5 5 . Class Distribution -------------------- 28% | Mutant 20% | Scavenger-Skirmisher 17% | Scavenger-Mutant 13% | Scavenger-Tank 3% | Hacker-Mutant 3% | Commander-Tank 3% | Scavenger-Gunner Dominant Class ---------------- Mutant | -10/Materials Mutant | -10/Subcaves Mutant | -9/Recycling Mutant | -9/Scraptown Skirmisher | -6/Factory Scavenger-Gunner | -6/Garrison Commander-Tank | -6/Extension Scavenger-Tank | -6/Cetus Scavenger-Mutant | -6/Archives Scavenger-Mutant | -6/Hub_04(d) Scavenger-Mutant | -5/Factory Scavenger-Tank | -5/Waste Scavenger-Skirmisher | -5/Factory Scavenger-Tank | -5/Garrison Scavenger-Skirmisher | -4/Factory Scavenger-Skirmisher | -4/Waste Scavenger-Skirmisher | -4/Factory Scavenger-Skirmisher | -4/Upper Caves Scavenger-Skirmisher | -4/Upper Caves Scavenger-Mutant | -4/Warlord Scientist-Skirmisher | -3/Proximity Caves Scavenger-Tank | -3/Research Hacker-Mutant | -3/Quarantine Hacker-Mutant | -2/Research Resources | -11 -10 -10 -9 -9 -6 -6 -6 -6 -6 -6 -5 -5 -5 -5 -4 -4 -4 -4 -4 -4 -3 -3 -3 -2 ----------- Run | Yrd Mat Sub Rec Scr Fac Gar Ext Cet Arc Hub Fac Was Fac Gar Fac Was Fac Upp Upp War Pro Res Qua Res Matter Collected 8640 | 200 933 210 . 32 960 159 869 222 233 95 506 . 1094 375 642 155 417 110 22 . 123 1104 20 159 Remotely . | . . . . . . . . . . . . . . . . . . . . . . . . . Salvage Created 15851 | 93 1056 1047 126 . 1541 419 1314 65 269 113 273 . 2129 1438 1543 445 1769 52 . . 446 1390 20 303 Parts 642 | 2 57 69 14 . 53 21 36 3 22 4 14 . 85 55 68 4 70 . . . 10 44 . 11 Haulers Intercepted 7 | . 2 . . . 1 . 1 . . . . . 1 . 1 . . . . . . 1 . . Recyclers Shooed 7 | . . . . . 3 . 2 . . . . . . . 1 . . . . . . 1 . . Parts Field Recycled . | . . . . . . . . . . . . . . . . . . . . . . . . . Retrieved Matter . | . . . . . . . . . . . . . . . . . . . . . . . . . Parts Self-Destructed 22 | . . 18 . . . . . . . . . . . . . . . . . . 4 . . . Prevented . | . . . . . . . . . . . . . . . . . . . . . . . . . Parts Restored 2 | . . . . . . . . . . . . . . . . . . . . . . 2 . . Broken 2 | . . . . . . . . . . . . . . . . . . . . . . 2 . . Kills | -11 -10 -10 -9 -9 -6 -6 -6 -6 -6 -6 -5 -5 -5 -5 -4 -4 -4 -4 -4 -4 -3 -3 -3 -2 ------- Run | Yrd Mat Sub Rec Scr Fac Gar Ext Cet Arc Hub Fac Was Fac Gar Fac Was Fac Upp Upp War Pro Res Qua Res Combat Hostiles Destroyed 247 | . 18 21 2 . 20 11 20 1 . 1 9 . 35 21 29 1 25 . . . 13 17 . 3 Guns 28 | . 3 . . . 12 4 8 . . . . . . . . . . . . . . . . 1 Cannons 152 | . 9 17 2 . 4 7 12 1 . 1 9 . 29 14 19 1 15 . . . 3 9 . . AOE 35 | . 6 2 . . . . . . . . . . 1 4 5 . 4 . . . 10 3 . . Classes Destroyed 26 | 2 5 3 2 . 4 1 1 . . . . . 1 1 . 2 . 2 . . 1 1 . . Worker 9 | . . . . . 3 . . . . . . . 3 . . . 3 . . . . . . . Builder 3 | . . . . . . . . . . . . . 1 . . . 2 . . . . . . . Tunneler 4 | 1 . . . . . . . . . . . . 2 . . . 1 . . . . . . . Hauler 7 | . 2 . . . 1 . 1 . . . . . 1 . 1 . . . . . . 1 . . Recycler 10 | 1 4 . . . 2 . 2 . . . . . . . . . 1 . . . . . . . Minesweeper 1 | . . . . . . . . . . . . . . . . . . 1 . . . . . . Operator 12 | . 3 . . . . . . . 8 . . . . . . . . . . . . . 1 . Drone 1 | . . . . . . . . . . . . . . . . . . . . . 1 . . . Turret 2 | . . 2 . . . . . . . . . . . . . . . . . . . . . . Watcher 20 | . 3 . . . 2 . 1 1 . 3 . . 5 . 2 . 2 . . . . . . 1 Swarmer 65 | . 6 1 . . 3 7 2 . . . 4 . 9 10 13 . 5 . . . 5 . . . Cutter 2 | . . . . . . . . . . . . . . 2 . . . . . . . . . . Grunt 65 | . 12 2 . . 7 2 9 . . . 2 . 7 4 2 . 5 . . . 4 7 . 2 Brawler 4 | . . . . . . . 1 . . . . . . . . . 2 . . . . 1 . . Duelist 4 | . . . . . . 1 . . . . 1 . . . . . . . . . 2 . . . Sentry 22 | . . . 2 . 2 . 7 . . . . . 4 2 2 . 2 . . . 1 . . . Specialist 3 | . . . . . 2 . . . . 1 . . . . . . . . . . . . . . Hunter 26 | . . . . . 3 1 . . . . . . 4 3 4 . 3 . . . . 8 . . Programmer 34 | . . . . . 3 . 1 . . . 2 . 11 . 8 . 8 . . . . . . 1 Compactor 1 | . . . . . . . . . . . . . . . . 1 . . . . . . . . Cetus Guard 1 | . . . . . . . . 1 . . . . . . . . . . . . . . . . Striker 1 | . . . . . . . . . . . . . . . . . . . . . . 1 . . Artisan 2 | . . 2 . . . . . . . . . . . . . . . . . . . . . . Subdweller 18 | . . 18 . . . . . . . . . . . . . . . . . . . . . . Scientist 1 | . . . 1 . . . . . . . . . . . . . . . . . . . . . Samaritan 3 | . . . . . . . . . . . . . . . . . . 1 . . 2 . . . Wasp 1 | . . . . . . . . . . . . . . . . 1 . . . . . . . . Butcher 1 | . . . . . . . . . . . . . . . . . 1 . . . . . . . Martyr 2 | . . . . . . . . . . . . . . . . 2 . . . . . . . . Best Kill Streak 9 | 2 7 3 2 . 7 6 3 1 2 2 4 . 6 5 6 1 4 1 . . 9 4 1 1 Combat Bots Only 9 | . 6 3 2 . 7 6 3 1 . 1 4 . 5 5 6 1 4 . . . 9 4 . 1 Max Kills in Single Turn 4 | 1 2 1 1 . 2 1 1 1 1 1 1 . 2 1 3 2 3 1 . . 4 1 1 1 Gunslinging 1 | . . . . . 1 . . . . . . . . . . . . . . . . . . . Exploded 4 | . 2 1 . . . . . . . . . . 1 1 3 . 2 . . . 4 1 . . Melee . | . . . . . . . . . . . . . . . . . . . . . . . . . Uniques/NPCs Destroyed . | . . . . . . . . . . . . . . . . . . . . . . . . . Combat | -11 -10 -10 -9 -9 -6 -6 -6 -6 -6 -6 -5 -5 -5 -5 -4 -4 -4 -4 -4 -4 -3 -3 -3 -2 -------- Run | Yrd Mat Sub Rec Scr Fac Gar Ext Cet Arc Hub Fac Was Fac Gar Fac Was Fac Upp Upp War Pro Res Qua Res Hostile Shots Fired 1953 | . 48 87 4 . 326 48 240 15 8 38 50 . 203 99 133 . 114 14 7 . 36 204 20 259 Missed 700 | . 13 34 2 . 120 12 87 6 6 11 14 . 59 22 50 . 48 5 . . 8 75 17 111 Hits 1253 | . 35 53 2 . 206 36 153 9 2 27 36 . 144 77 83 . 66 9 7 . 28 129 3 148 Melee 14 | . . . . . . 1 . . . . 2 . . 2 . . . . . . . 9 . . Projectile 1239 | . 35 53 2 . 206 35 153 9 2 27 34 . 144 75 83 . 66 9 7 . 28 120 3 148 AOE 9 | . . 2 . . . . . . . 1 . . 1 3 . . . . . . . 1 . 1 Critical Strikes 48 | . . 2 . . 5 2 3 1 . 2 2 . 5 3 1 . 1 . 3 . 1 6 . 11 Actively Blocked 1 | . . . . . . . . . . . . . . . . . . . . . . 1 . . Part Disruptions 6 | . . . . . 1 . 2 . . . 1 . . . . . 1 . . . . . . 1 Damage Taken 23741 | . 568 906 30 . 3307 556 1549 291 125 553 648 3 2846 1528 1554 28 1307 162 198 . 590 3213 142 3637 Core 4048 | . 24 199 . . 511 143 77 28 24 17 93 . 389 122 104 . 81 . 78 . 73 711 . 1374 Absorbed by Shields 435 | . . . . . . 53 382 . . . . . . . . . . . . . . . . . Reduced by Siege Mode 78 | . . . . . . . . . . . . . 15 36 . . . . . . . 27 . . Redirected to Shielding 276 | . . . . . . . . . . . . . 164 . . . . . . . . 112 . . Regen/Repaired (Parts) 2315 | . 26 . . . . . . . . . . . 968 . 428 556 337 . . . . . . . Core Remaining (%) 44 | 100 . . . 10 . . . . . 5 . . . 39 . . . . . . 70 . 45 . Volleys Fired 840 | 5 53 92 3 . 71 39 59 11 9 11 23 9 102 67 107 10 52 3 . . 16 68 9 21 Largest 3 | 2 2 2 2 . 3 3 3 3 3 2 2 1 3 3 3 3 3 3 . . 3 3 1 3 Hottest 328 | 90 120 160 160 . 270 260 210 148 148 104 196 5 294 226 228 306 308 308 . . 298 328 120 276 Shots Fired 1702 | 10 93 149 7 . 181 81 167 34 25 21 46 9 243 123 176 27 118 10 2 . 23 116 9 32 Gun 300 | 10 32 33 . . 146 18 42 . . . . . . . . . . . . . . . . 19 Cannon 1338 | . 57 114 7 . 35 63 125 34 25 21 46 . 240 106 169 27 108 10 2 . 18 109 9 13 Launcher 51 | . 4 2 . . . . . . . . . . 3 17 3 . 10 . . . 5 7 . . Special 13 | . . . . . . . . . . . . 9 . . 4 . . . . . . . . . Kinetic 342 | . 26 9 . . 135 12 70 22 17 11 40 . . . . . . . . . . . . . Thermal 1208 | 5 57 138 7 . 46 69 97 12 8 10 6 . 239 106 139 25 108 10 2 . 13 91 1 19 Explosive 12 | . 4 2 . . . . . . . . . . . . 1 . . . . . 5 . . . Electromagnetic 127 | 5 6 . . . . . . . . . . . 4 17 32 2 10 . . . 5 25 8 13 Robot Hit Streak 32 | 3 16 13 12 . 14 15 32 4 6 6 6 3 23 25 24 16 21 7 . . 17 22 3 5 Robot Miss Streak 6 | 1 2 5 1 . 5 6 5 4 2 3 3 1 4 4 4 1 3 . . . . 3 . 2 Penetration Max 2 | . . . . . 2 . 1 . . . . . . . . . . . . . . . . . Secondary Targets 4 | . . . . . 3 . . . . . . . . . . . . . . . . . . 1 Max Gunslinging Chain 1 | . . . . . 1 . . . . . . . . . . . . . . . . . . 1 Shots Hit Robots 1012 | 7 62 75 4 . 113 43 112 18 32 12 22 6 134 83 108 23 63 6 . . 10 55 2 22 Core Hits 513 | 3 35 29 3 . 52 31 65 7 11 5 12 . 57 37 44 6 49 4 . . 28 29 1 5 Critical Kills 20 | . . 3 . . 5 . . . . . . . 2 3 2 . 4 . . . . 1 . . Critical Parts Destroyed 4 | . . . . . 2 . . . . . . . . . . . . . . . . . . 2 Critical Strikes 40 | 1 . 3 . . 8 . 6 3 1 . . . 2 5 3 . 4 . . . 1 1 . 2 Burn 1 | 1 . . . . . . . . . . . . . . . . . . . . . . . . Meltdown 18 | . . 3 . . 3 . . . . . . . 2 3 2 . 4 . . . . 1 . . Destroy 6 | . . . . . 4 . . . . . . . . . . . . . . . . . . 2 Blast 10 | . . . . . . . 6 3 1 . . . . . . . . . . . . . . . Corrupt 2 | . . . . . . . . . . . . . . . 1 . . . . . 1 . . . Sever 3 | . . . . . 1 . . . . . . . . 2 . . . . . . . . . . Melee Attacks 51 | . . . . . 17 . . . 14 8 . . . 12 . . . . . . . . . . Impact 3 | . . . . . 3 . . . . . . . . . . . . . . . . . . . Slashing 48 | . . . . . 14 . . . 14 8 . . . 12 . . . . . . . . . . Piercing . | . . . . . . . . . . . . . . . . . . . . . . . . . Sneak Attacks 12 | . . . . . 1 . . . 11 . . . . . . . . . . . . . . . Combat Hostiles . | . . . . . . . . . . . . . . . . . . . . . . . . . Follow-up Attacks . | . . . . . . . . . . . . . . . . . . . . . . . . . Damage Inflicted 38826 | 124 1266 1836 109 . 3471 1282 3570 611 1826 390 807 6 5308 3235 3812 789 3662 212 . . 2031 3586 91 802 Guns 4692 | 93 277 105 . . 2251 448 1025 . . . . . . . . . . . . . . . . 493 Cannons 25816 | . 723 1598 109 . 772 834 2541 611 552 383 807 . 4831 2149 3528 789 2420 212 . . 328 2229 91 309 Explosions 6044 | 31 266 133 . . . . . . . . . . 477 588 281 . 1242 . . . 1703 1323 . . Melee 2220 | . . . . . 448 . . . 1274 . . . . 498 . . . . . . . . . . Ramming 54 | . . . . . . . 4 . . 7 . 6 . . 3 . . . . . . 34 . . Kinetic 5407 | . 198 59 . . 1977 99 1313 474 414 240 633 . . . . . . . . . . . . . Thermal 23984 | 70 770 1644 109 . 1046 1183 2253 137 138 143 174 . 4796 2149 2802 783 2866 212 . . 140 2076 . 493 Explosive 2397 | . 219 133 . . . . . . . . . . 35 . 186 . . . . . 1703 121 . . Electromagnetic 4764 | 54 79 . . . . . . . . . . . 477 588 821 6 796 . . . 188 1355 91 309 Impact . | . . . . . . . . . . . . . . . . . . . . . . . . . Slashing 2220 | . . . . . 448 . . . 1274 . . . . 498 . . . . . . . . . . Piercing . | . . . . . . . . . . . . . . . . . . . . . . . . . Highest Corruption 20 | . . . 1 . 10 5 7 7 7 8 2 18 20 2 4 4 5 5 5 5 2 3 5 18 Average Corruption 4 | . . . 1 . 3 5 5 7 5 3 1 9 8 1 1 4 3 5 5 5 2 3 4 13 Corruption Purged 45 | . . . . . 5 . . . 7 . . . 29 . . . 4 . . . . . . . Corruption Blocked . | . . . . . . . . . . . . . . . . . . . . . . . . . Effects 300 | . . . 3 . 11 18 51 8 14 1 1 5 76 21 8 4 11 22 12 1 1 1 15 16 Message Errors 70 | . . . 1 . 2 6 12 . 2 . . 1 22 5 5 . 3 4 1 . . . 4 2 Matter Fused 63 | . . . 1 . 3 5 8 3 4 . 1 2 13 7 1 1 5 3 1 . . . 3 2 Heat Flow Errors 35 | . . . . . . 1 4 . 2 1 . . 14 3 . . 1 4 2 . . . 1 2 Energy Discharges 31 | . . . . . 1 2 6 1 4 . . 1 5 2 . 1 1 2 . . . 1 3 1 Parts Rejected 3 | . . . . . . . 1 . . . . . 1 . . . . . . . . . . 1 Parts Fused 6 | . . . . . . . 3 . . . . . 1 1 . . . . . . . . . 1 Data Loss (minor) 40 | . . . . . 3 . 8 3 . . . . 6 2 1 1 . 7 4 1 1 . 3 . Data Loss (major) 13 | . . . . . 1 2 1 . 1 . . . 2 1 1 . . 1 2 . . . . 1 Misfires 15 | . . . 1 . 1 1 2 1 . . . . 5 . . . 1 1 2 . . . . . Alerts 9 | . . . . . . . 5 . . . . . 3 . . . . . . . . . 1 . Misdirections 6 | . . . . . . . . . . . . 1 . . . . . . . . . . . 5 Weapon Failures 9 | . . . . . . 1 1 . 1 . . . 4 . . 1 . . . . . . . 1 Overload Shots 8 | . . . . . . . . . . . . . 1 4 3 . . . . . . . . . Effects 1 | . . . . . . . . . . . . . . 1 . . . . . . . . . . Energy Bleed 1 | . . . . . . . . . . . . . . 1 . . . . . . . . . . Overflow Damage 1535 | 19 . 16 . . 32 17 28 . 585 21 11 . 279 93 86 30 75 10 . . 56 162 15 . Projectiles 805 | . . 16 . . 5 17 28 . . 21 11 . 262 93 86 30 75 10 . . 20 116 15 . Explosions 114 | 19 . . . . . . . . . . . . 17 . . . . . . . 36 42 . . Melee 616 | . . . . . 27 . . . 585 . . . . . . . . . . . . 4 . . Knockbacks 22 | . . . . . . 1 12 . . 1 8 . . . . . . . . . . . . . Impact . | . . . . . . . . . . . . . . . . . . . . . . . . . Kinetic 18 | . . . . . . 1 8 . . 1 8 . . . . . . . . . . . . . Secondary 4 | . . . . . . . 4 . . . . . . . . . . . . . . . . . Self-Inflicted Damage 326 | . 20 19 . . . . . . . . . 3 81 138 19 . . . . . 1 45 . . Shots 13 | . 1 1 . . . . . . . . . . 1 5 2 . . . . . 1 2 . . Rammed 3 | . . . . . . . . . . 1 . 1 . . 1 . . . . . . . . . Targets Rammed 5 | . . . . . . . 1 . . 1 . 1 . . 1 . . . . . . 1 . . Kicked 2 | . . . . . . . 1 . . . . . . . . . . . . . . 1 . . Crushed . | . . . . . . . . . . . . . . . . . . . . . . . . . Highest Temperature 674 | 132 391 10 252 . 180 266 205 6 224 153 129 . 459 290 353 358 452 422 356 . 279 674 139 530 Average Temperature 112 | 74 166 5 101 . 33 78 45 3 112 96 52 . 94 96 111 133 146 135 120 . 98 140 85 168 Received Heat Transfer 2950 | . 231 210 9 . 384 99 396 9 9 75 9 . 219 135 57 . 139 21 398 . 78 199 12 261 Effects 48 | . 1 . . . . . . . . . . . 5 . 7 1 7 3 . . . 20 . 4 Shutdowns 14 | . 1 . . . . . . . . . . . 2 . 2 . 1 . . . . 8 . . Energy Bleed 8 | . . . . . . . . . . . . . . . 1 . 1 2 . . . 1 . 3 Interference 13 | . . . . . . . . . . . . . 3 . 3 1 3 1 . . . 2 . . Matter Decay 3 | . . . . . . . . . . . . . . . 1 . 2 . . . . . . . Short Circuit 2 | . . . . . . . . . . . . . . . . . . . . . . 1 . 1 Damage (minor) 3 | . . . . . . . . . . . . . . . . . . . . . . 3 . . Damage (major) 3 | . . . . . . . . . . . . . . . . . . . . . . 3 . . Damage (core) 2 | . . . . . . . . . . . . . . . . . . . . . . 2 . . Siege Activations 7 | . . . . . . . . . . . . . 2 4 . . . . . . . 1 . . Total Turns 163 | . . . . . . . . . . . . . 35 98 . . . . . . . 30 . . Longest Duration 39 | . . . . . . . . . . . . . 21 39 . . . . . . . 30 . . Martial Activations . | . . . . . . . . . . . . . . . . . . . . . . . . . Shielding Activations . | . . . . . . . . . . . . . . . . . . . . . . . . . Robots Disrupted . | . . . . . . . . . . . . . . . . . . . . . . . . . Combat Hostiles . | . . . . . . . . . . . . . . . . . . . . . . . . . Robots Corrupted 17 | . . . . . . . . . . . . . 2 2 3 . 3 . . . . 5 . 2 Combat Hostiles 15 | . . . . . . . . . . . . . 2 2 2 . 3 . . . . 4 . 2 Parts Fried 34 | 1 . . . . . . . . . . . . 2 7 6 . 4 . . . 3 9 2 . Impact Corruptions 1 | . . . . . . . . . . . . . . . . . . . . . . 1 . . Robots Melted 22 | . . 3 . . 4 1 . . . . . . 2 4 3 . 4 . . . . 1 . . Combat Hostiles 16 | . . 2 . . 4 . . . . . . . 2 1 3 . 3 . . . . 1 . . Parts Melted 86 | 1 3 5 . . 12 3 10 . . . 1 . 19 6 10 . 8 2 . . . 4 . 2 Heat Transferred 32086 | 235 1567 2566 148 . 1675 2150 4105 222 222 222 200 . 6187 3011 3074 800 3071 248 . . 148 1717 . 518 Parts Sabotaged . | . . . . . . . . . . . . . . . . . . . . . . . . . Parts Stolen . | . . . . . . . . . . . . . . . . . . . . . . . . . Parts Stripped . | . . . . . . . . . . . . . . . . . . . . . . . . . Power Chain Reactions 6 | 1 1 . . . . . . . . . . . . 1 . . 2 . . . . 1 . . Alert | -11 -10 -10 -9 -9 -6 -6 -6 -6 -6 -6 -5 -5 -5 -5 -4 -4 -4 -4 -4 -4 -3 -3 -3 -2 ------- Run | Yrd Mat Sub Rec Scr Fac Gar Ext Cet Arc Hub Fac Was Fac Gar Fac Was Fac Upp Upp War Pro Res Qua Res Maximum Alert Level 5 | . 1 . . . 1 2 5 4 2 1 1 . 1 4 2 . 5 . . . . 3 2 1 Low Security (%) 36 | 100 71 . 100 . 90 17 . . 51 36 91 100 35 9 10 100 14 . . . . . . 91 Level 1 28 | . 28 . . . 9 46 22 . 28 63 8 . 64 5 46 . 9 . . . . . 95 8 Level 2 21 | . . . . . . 35 42 . 20 . . . . 7 43 . 7 . . . . 91 4 . Level 3 9 | . . . . . . . 28 82 . . . . . 65 . . 14 . . . . 8 . . Level 4 2 | . . . . . . . 2 17 . . . . . 11 . . 30 . . . . . . . Level 5 . | . . . . . . . 4 . . . . . . . . . 9 . . . . . . . High Security . | . . . . . . . . . . . . . . . . . 14 . . . . . . . Max Security . | . . . . . . . . . . . . . . . . . . . . . . . . . Peak Influence 1657 | 10 366 . 83 . 242 513 1657 1126 554 338 213 43 386 1208 639 116 1639 . . . . 772 465 269 Initial 922 | . . . . . . 163 268 922 430 2 117 43 . 127 634 102 33 . . . . 638 344 261 Average 376 | 3 151 . 26 . 67 353 667 1028 228 188 141 19 228 828 374 82 1028 . . . . 590 353 61 Influence Increases 14239 | 10 694 140 243 . 684 390 2178 324 304 580 278 . 1299 1141 1139 56 2162 200 15 . 270 1399 353 380 Destroy 0b10 Robot/C 6000 | . 360 100 40 . 400 220 960 160 80 220 180 . 700 540 580 . 820 . . . 240 340 . 60 Destroy 0b10 Robot/NC 415 | 10 60 . . . 40 5 35 10 40 25 . . 60 25 15 . 65 5 . . 5 5 5 5 Destroy Leader 1026 | . 80 10 . . 106 20 106 . . 56 30 . 182 50 116 . 196 . . . 10 52 . 12 Allied During Kill 2141 | . . . . . . . 893 140 120 200 . . . 52 . . 736 . . . . . . . Trap Triggered on 0b10 20 | . . . . . . . . . . . . . . . . . . . . . . 20 . . Successful Hack 781 | . 23 . 20 . 44 . 43 . . 34 16 . 118 14 177 . 118 . . . . 118 48 8 Select Force Hacks 240 | . 60 . 180 . . . . . . . . . . . . . . . . . . . . . Disable Machine 690 | . 45 . . . 45 30 60 . 60 15 . . 60 30 120 . 90 . . . . 15 90 30 Anti-Garrison Action 300 | . . . . . . 50 . . . . . . . 250 . . . . . . . . . . Destroy Structure 821 | . 36 . 3 . 19 5 36 14 4 30 22 . 134 120 86 56 122 . . . . 134 . . Advance Influence 600 | . . . . . . . . . . . . . . . . . . . . . . 600 . . Partial Spotted 45 | . . . . . . . . . . . . . 15 . . . 15 . . . . . . 15 Lose Combat Pursuer 960 | . 30 30 . . 30 60 45 . . . 30 . 30 60 45 . . 195 15 . 15 15 210 150 Miscellaneous 200 | . . . . . . . . . . . . . . . . . . . . . . 100 . 100 Influence Decreases 14232 | 10 599 235 243 . 451 110 1043 896 1372 348 393 125 1117 115 2053 302 611 1006 410 398 213 843 501 838 Entered New Map 4415 | . . 47 . . . 70 245 726 646 6 123 82 . 55 574 192 15 592 152 398 . 19 269 204 Time Decay 6821 | 10 589 128 243 . 351 . 598 160 646 212 230 43 687 . 614 90 356 404 238 . 166 654 222 180 Lost Part 934 | . 10 60 . . 100 40 40 10 . 10 40 . 120 40 20 . 50 10 20 . 30 170 10 154 Lost Ally 637 | . . . . . . . 160 . 80 120 . . 10 20 20 20 190 . . . 17 . . . Purge Threat 1425 | . . . . . . . . . . . . . 300 . 825 . . . . . . . . 300 Squads Dispatched 98 | . 4 . . . 9 . 8 . . 7 3 . 15 . 15 . 12 . . . 1 19 3 2 Investigation 46 | . 3 . . . 1 . 5 . . . 1 . 6 . 11 . 3 . . . . 14 1 1 Extermination 19 | . . . . . 3 . . . . 2 1 . 5 . 4 . 2 . . . . . 1 1 Reinforcement 20 | . 1 . . . 5 . 1 . . 2 1 . 4 . . . . . . . . 5 1 . Assault 9 | . . . . . . . 2 . . . . . . . . . 6 . . . 1 . . . Garrison 4 | . . . . . . . . . . 3 . . . . . . 1 . . . . . . . Intercept . | . . . . . . . . . . . . . . . . . . . . . . . . . Searches Triggered . | . . . . . . . . . . . . . . . . . . . . . . . . . Construction Impeded 2 | . . . . . 1 . 1 . . . . . . . . . . . . . . . . . Haulers Reinforced 7 | . . . . . 1 . . . . . . . 2 . . . . . . . . 4 . . Active Scanning Responses . | . . . . . . . . . . . . . . . . . . . . . . . . . Cargo Convoy Interrupts 1 | . . . . . 1 . . . . . . . . . . . . . . . . . . . Stealth | -11 -10 -10 -9 -9 -6 -6 -6 -6 -6 -6 -5 -5 -5 -5 -4 -4 -4 -4 -4 -4 -3 -3 -3 -2 --------- Run | Yrd Mat Sub Rec Scr Fac Gar Ext Cet Arc Hub Fac Was Fac Gar Fac Was Fac Upp Upp War Pro Res Qua Res Distress Signals 22 | . . . . . . . 3 2 . 2 . . 2 . 3 . 5 . . . . 4 1 . Communications Jammed 16 | . . . . . . . . . . . . . . . . . . . . . . . 11 5 Distress Signals 16 | . . . . . . . . . . . . . . . . . . . . . . . 11 5 Times Spotted 501 | . 17 25 2 . 34 12 54 9 15 15 12 6 52 28 41 4 57 14 1 . 15 39 18 31 Peak Tracking Total 14 | . 6 2 2 . 11 4 14 5 1 7 6 2 5 5 5 2 10 12 1 . 9 8 10 10 Tactical Retreats 31 | . 1 2 . . 1 2 3 . . . 1 . 2 2 3 . . 3 1 . 1 1 4 4 Traps | -11 -10 -10 -9 -9 -6 -6 -6 -6 -6 -6 -5 -5 -5 -5 -4 -4 -4 -4 -4 -4 -3 -3 -3 -2 ------- Run | Yrd Mat Sub Rec Scr Fac Gar Ext Cet Arc Hub Fac Was Fac Gar Fac Was Fac Upp Upp War Pro Res Qua Res Traps Triggered 26 | . 4 . . . . 4 3 . . . 2 . 2 4 3 . 2 . . . . 1 1 . Indirectly 3 | . . . . . . . . . . . . . . 3 . . . . . . . . . . Trap Hack Attempts 44 | . 44 . . . . . . . . . . . . . . . . . . . . . . . Triggered . | . . . . . . . . . . . . . . . . . . . . . . . . . Disarmed . | . . . . . . . . . . . . . . . . . . . . . . . . . Reprogrammed 3 | . 3 . . . . . . . . . . . . . . . . . . . . . . . Reused 2 | . . . . . . . . . . . . . . . . . . . . . . 2 . . Traps Extracted . | . . . . . . . . . . . . . . . . . . . . . . . . . Installed 3 | . . . . . . . . . . . . . . . . . . . . . . 3 . . Triggered 2 | . . . . . . . . . . . . . . . . . . . . . . 2 . . Most Traps Carried 3 | . . . . . . . . . . . . . . . . . . 3 3 3 3 3 . . Machines | -11 -10 -10 -9 -9 -6 -6 -6 -6 -6 -6 -5 -5 -5 -5 -4 -4 -4 -4 -4 -4 -3 -3 -3 -2 ---------- Run | Yrd Mat Sub Rec Scr Fac Gar Ext Cet Arc Hub Fac Was Fac Gar Fac Was Fac Upp Upp War Pro Res Qua Res Machines Disabled 56 | . 3 1 . . 3 3 7 . 4 1 . . 4 5 8 . 6 . . . 2 1 6 2 Max in Single Turn 3 | . 1 1 . . 1 1 1 . 1 . . . 1 1 2 . 3 . . . 1 1 1 1 Garrison Access 10 | . . . . . 1 . . . . . . . 2 . 2 . 1 . . . . 3 1 . Garrison Relay 2 | . . . . . . 1 . . . . . . . 1 . . . . . . . . . . Phase Generator 1 | . . . . . . . . . . . . . . 1 . . . . . . . . . . Network Hub 1 | . . . . . . . . . . 1 . . . . . . . . . . . . . . Machines Repaired 2 | . . . . . . . 2 . . . . . . . . . . . . . . . . . Machines Dismantled . | . . . . . . . . . . . . . . . . . . . . . . . . . Machines Sabotaged . | . . . . . . . . . . . . . . . . . . . . . . . . . Overloaded Fab Kills . | . . . . . . . . . . . . . . . . . . . . . . . . . Hacking | -11 -10 -10 -9 -9 -6 -6 -6 -6 -6 -6 -5 -5 -5 -5 -4 -4 -4 -4 -4 -4 -3 -3 -3 -2 --------- Run | Yrd Mat Sub Rec Scr Fac Gar Ext Cet Arc Hub Fac Was Fac Gar Fac Was Fac Upp Upp War Pro Res Qua Res Machines Accessed 147 | . 10 2 12 4 7 1 12 1 . 5 3 . 23 2 25 . 13 1 . . . 17 7 2 Terminals 79 | . 7 . 6 . 4 1 9 1 . 5 1 . 11 2 14 . 7 . . . . 5 5 1 Fabricators 8 | . . . . . . . . . . . . . 3 . 2 . . . . . . 2 . 1 Repair Stations 7 | . 1 . . . . . 1 . . . . . 2 . 1 . . . . . . 2 . . Recycling Units 28 | . 2 . 6 . 1 . 2 . . . 1 . 3 . 5 . 3 . . . . 5 . . Scanalyzers 7 | . . . . . . . . . . . 1 . 1 . 1 . 2 . . . . 1 1 . Garrison Access 11 | . . . . . 2 . . . . . . . 3 . 2 . 1 . . . . 2 1 . Total Hacks 480 | . 31 14 24 22 16 2 29 3 . 9 14 . 90 5 88 . 56 1 . . . 35 25 16 Successful 297 | . 23 14 14 22 10 . 10 . . 3 11 . 53 2 46 . 37 1 . . . 21 19 11 Failed 178 | . 7 . 10 . 6 2 19 3 . 6 3 . 36 3 41 . 18 . . . . 13 6 5 Catastrophic 27 | . . . 1 . . . 4 2 . . . . 4 1 9 . 3 . . . . 2 1 . Database Lockouts 5 | . 1 . . . . . . . . . . . 1 . 1 . 1 . . . . 1 . . Manual 216 | . 22 . 21 . 9 . 11 1 . 5 6 . 44 3 39 . 30 . . . . 14 3 8 Terminals 274 | . 25 . 15 . 8 2 24 3 . 9 8 . 52 5 55 . 33 . . . . 11 15 9 Fabricators 26 | . . . . . . . . . . . . . 7 . 6 . . . . . . 6 . 7 Repair Stations 25 | . 2 . . . . . 2 . . . . . 11 . 5 . . . . . . 5 . . Recycling Units 47 | . 4 . 9 . 3 . 3 . . . 1 . 6 . 11 . 3 . . . . 7 . . Scanalyzers 49 | . . . . . . . . . . . 5 . 8 . 9 . 16 . . . . 2 9 . Garrison Access 22 | . . . . . 5 . . . . . . . 6 . 2 . 4 . . . . 4 1 . Terminal Hacks 120 | . 8 14 3 22 2 . 6 . . 2 3 . 16 2 14 . 9 1 . . . 3 8 7 Record 42 | . 3 13 . 22 . . . . . . . . . . . . 1 . . . . . 3 . Part Schematic 6 | . . . 1 . . . . . . . . . 3 . . . 1 . . . . . . 1 Robot Analysis 6 | . 1 . 2 . . . 1 . . . 1 . 1 . . . . . . . . . . . Prototype ID Bank 4 | . . . . . . . . . . . 1 . 1 . 2 . . . . . . . . . Open Door 7 | . . . . . 1 . 4 . . . . . . 1 . . . 1 . . . . . . Level Access Points 2 | . . . . . . . . . . 1 . . 1 . . . . . . . . . . . Branch Access Points 4 | . . . . . . . . . . . . . 1 . 1 . 1 . . . . . 1 . Emergency Access Points 1 | . . . . . . . . . . . . . . . . . 1 . . . . . . . Machine Index 1 | . . . . . . . . . . . . . . . . . . . . . . . 1 . Terminal Index 7 | . 1 . . . . . . . . 1 . . 1 . 1 . 1 . . . . . 1 1 Fabricator Index 3 | . . . . . . . . . . . . . . . . . 1 . . . . 1 . 1 Recycling Unit Index 2 | . . . . . . . . . . . . . 1 . . . 1 . . . . . . . Scanalyzer Index 1 | . . . . . . . . . . . . . 1 . . . . . . . . . . . Garrison Index 1 | . . . . . . . . . . . . . . . 1 . . . . . . . . . Unreport Threat 9 | . . . . . . . . . . . . . 2 . 3 . . . . . . 1 . 3 Locate Traps 7 | . 1 . . . 1 . 1 . . . . . 1 . 2 . . . . . . 1 . . Recall Investigation 3 | . . . . . . . . . . . . . 2 . 1 . . . . . . . . . Recall Reinforcements 1 | . . . . . . . . . . . 1 . . . . . . . . . . . . . Registered Prototypes 1 | . . . . . . . . . . . . . . . 1 . . . . . . . . . Zone Layout 10 | . 2 . . . . . . . . . . . 1 . 2 . 2 . . . . . 2 1 Garrison Registry 1 | . . . . . . . . . . . . . . 1 . . . . . . . . . . Proto ID Catalog 1 | . . 1 . . . . . . . . . . . . . . . . . . . . . . Fabricator Hacks 14 | . . . . . . . . . . . . . 5 . 2 . . . . . . 5 . 2 Network Status 1 | . . . . . . . . . . . . . 1 . . . . . . . . . . . Load Schematic 6 | . . . . . . . . . . . . . 2 . 1 . . . . . . 2 . 1 Build 7 | . . . . . . . . . . . . . 2 . 1 . . . . . . 3 . 1 Repair Station Hacks 12 | . 2 . . . . . . . . . . . 5 . 3 . . . . . . 2 . . Scan Component 8 | . 1 . . . . . . . . . . . 3 . 2 . . . . . . 2 . . Repair 4 | . 1 . . . . . . . . . . . 2 . 1 . . . . . . . . . Recycling Unit Hacks 6 | . 1 . 1 . . . . . . . . . 1 . 3 . . . . . . . . . Retrieve Components 6 | . 1 . 1 . . . . . . . . . 1 . 3 . . . . . . . . . Scanalyzer 37 | . . . . . . . . . . . 4 . 6 . 5 . 14 . . . . 1 7 . Insert Component 11 | . . . . . . . . . . . 1 . 2 . 1 . 6 . . . . . 1 . Analyze 10 | . . . . . . . . . . . . . 2 . 1 . 7 . . . . . . . Retrieve Study 16 | . . . . . . . . . . . 3 . 2 . 3 . 1 . . . . 1 6 . Garrison Access Hacks 11 | . . . . . 2 . . . . . . . 3 . 2 . 1 . . . . 2 1 . Unlock Access 2 | . . . . . 1 . . . . . . . 1 . . . . . . . . . . . Seal Access 8 | . . . . . 1 . . . . . . . 2 . 2 . 1 . . . . 1 1 . Coupler Status 1 | . . . . . . . . . . . . . . . . . . . . . . 1 . . Unauthorized Hacks 97 | . 12 . 10 . 6 . 4 . . 1 4 . 17 . 17 . 13 . . . . 8 3 2 Terminals 62 | . 10 . 4 . 3 . 2 . . 1 3 . 11 . 12 . 9 . . . . 2 3 2 Track 3 | . 1 . . . . . . . . . . . 1 . . . . . . . . . 1 . Assimilate 6 | . 1 . . . . . . . . . . . 1 . 3 . 1 . . . . . . . Botnet 21 | . 2 . 3 . 1 . 2 . . 1 1 . 3 . 2 . 3 . . . . 1 1 1 Disrupt 1 | . . . . . . . . . . . . . . . 1 . . . . . . . . . Operators 2 | . 1 . . . . . . . . . 1 . . . . . . . . . . . . . Skim 29 | . 5 . 1 . 2 . . . . . 1 . 6 . 6 . 5 . . . . 1 1 1 Fabricators 1 | . . . . . . . . . . . . . 1 . . . . . . . . . . . Report 1 | . . . . . . . . . . . . . 1 . . . . . . . . . . . Repair Stations . | . . . . . . . . . . . . . . . . . . . . . . . . . Recycling Units 28 | . 2 . 6 . 1 . 2 . . . 1 . 3 . 5 . 3 . . . . 5 . . Tunnel 8 | . 2 . 6 . . . . . . . . . . . . . . . . . . . . . Fedlink 20 | . . . . . 1 . 2 . . . 1 . 3 . 5 . 3 . . . . 5 . . Scanalyzers . | . . . . . . . . . . . . . . . . . . . . . . . . . Garrison Access 6 | . . . . . 2 . . . . . . . 2 . . . 1 . . . . 1 . . Broadcast 1 | . . . . . 1 . . . . . . . . . . . . . . . . . . . Restock 3 | . . . . . . . . . . . . . 1 . . . 1 . . . . 1 . . Watchers 2 | . . . . . 1 . . . . . . . 1 . . . . . . . . . . . Data Cores Recovered 2 | . 1 . . . . . . . . . . . . . . . 1 . . . . . . . Used 2 | . 1 . . . . . . . . . . . . . . . 1 . . . . . . . Hacking Detections 91 | . 7 . 7 . 3 1 8 1 . 3 2 . 18 1 17 . 8 . . . . 10 3 2 Full Trace Events 19 | . . . 2 . . . 3 . . . . . 3 1 6 . . . . . . 3 . 1 Feedback Events 1 | . . . 1 . . . . . . . . . . . . . . . . . . . . . Corruption 1 | . . . 1 . . . . . . . . . . . . . . . . . . . . . Feedback Blocked . | . . . . . . . . . . . . . . . . . . . . . . . . . Robot Schematics Acquired . | . . . . . . . . . . . . . . . . . . . . . . . . . Robots Built . | . . . . . . . . . . . . . . . . . . . . . . . . . Authchips . | . . . . . . . . . . . . . . . . . . . . . . . . . Time . | . . . . . . . . . . . . . . . . . . . . . . . . . Total Robot Build Rating . | . . . . . . . . . . . . . . . . . . . . . . . . . Part Schematics Acquired 12 | . . . 1 . . . . . . . . . 5 . . . 5 . . . . . . 1 Parts Built 14 | . . . . . . . . . . . . . 4 . 2 . . . . . . 6 . 2 Authchips . | . . . . . . . . . . . . . . . . . . . . . . . . . Time 407 | . . . . . . . . . . . . . 153 . 53 . . . . . . 143 . 58 Total Part Build Rating 94 | . . . . . . . . . . . . . 22 . 12 . . . . . . 46 . 14 Part Studies Acquired 16 | . . . . . . . . . . . 3 . 2 . 3 . 1 . . . . 1 6 . Parts Repaired 4 | . 1 . . . . . . . . . . . 2 . 1 . . . . . . . . . Time 188 | . 26 . . . . . . . . . . . 108 . 54 . . . . . . . . . Parts Recycled . | . . . . . . . . . . . . . . . . . . . . . . . . . Recycled Matter . | . . . . . . . . . . . . . . . . . . . . . . . . . Retrieved Matter . | . . . . . . . . . . . . . . . . . . . . . . . . . Retrieved Components 32 | . 10 . 2 . . . . . . . . . 10 . 10 . . . . . . . . . Parts Scanalyzed 9 | . . . . . . . . . . . 1 . 2 . 1 . 5 . . . . . . . Part Schematics Acquired 7 | . . . . . . . . . . . . . 2 . . . 5 . . . . . . . Parts Damaged . | . . . . . . . . . . . . . . . . . . . . . . . . . Bothacking | -11 -10 -10 -9 -9 -6 -6 -6 -6 -6 -6 -5 -5 -5 -5 -4 -4 -4 -4 -4 -4 -3 -3 -3 -2 ------------ Run | Yrd Mat Sub Rec Scr Fac Gar Ext Cet Arc Hub Fac Was Fac Gar Fac Was Fac Upp Upp War Pro Res Qua Res Used RIF Installer 2 | . . . . . . 1 . . . . . . . 1 . . . . . . . . . . Zone Cloak 1 | . . . . . . . . . . . . . . 1 . . . . . . . . . . Robots Hacked 7 | . . . . . . . . . . . . 6 . . 1 . . . . . . . . . Non-combat 1 | . . . . . . . . . . . . . . . 1 . . . . . . . . . Combat 6 | . . . . . . . . . . . . 6 . . . . . . . . . . . . Robot Hacks Applied 11 | . . . . . . . . . . . . 7 . . 4 . . . . . . . . . parse_system 1 | . . . . . . . . . . . . 1 . . . . . . . . . . . . purge_threat 3 | . . . . . . . . . . . . . . . 3 . . . . . . . . . clear_recycling 1 | . . . . . . . . . . . . . . . 1 . . . . . . . . . ignore_targets 6 | . . . . . . . . . . . . 6 . . . . . . . . . . . . Relay Couplers Released 13 | . . . . . . 4 . . . . . . 2 3 . . . . . . . 4 . . Machine Destruction 13 | . . . . . . 4 . . . . . . 2 3 . . . . . . . 4 . . Attached 2 | . . . . . . . . . . . . 1 . . 1 . . . . . . . . . Fabnet Peak Effective % . | . . . . . . . . . . . . . . . . . . . . . . . . . Robots Rewired 22 | . . . . . . . 17 . . . . . . 3 . . . . . . 2 . . . Allies Hacked 2 | . . . . . . . . . . . . . . . . . 2 . . . . . . . Hacks Repelled . | . . . . . . . . . . . . . . . . . . . . . . . . . Allies | -11 -10 -10 -9 -9 -6 -6 -6 -6 -6 -6 -5 -5 -5 -5 -4 -4 -4 -4 -4 -4 -3 -3 -3 -2 -------- Run | Yrd Mat Sub Rec Scr Fac Gar Ext Cet Arc Hub Fac Was Fac Gar Fac Was Fac Upp Upp War Pro Res Qua Res Total Allies 54 | . . . . . . . 23 5 . . . . 1 3 2 18 . . . . 2 . . . Largest Group 19 | . . . . . . . 19 11 11 6 . . 1 3 2 18 13 . . . 2 . . . Highest-Rated Group 786 | . . . . . . . 710 786 786 444 . . 10 131 52 656 473 . . . 112 . . . Highest-Rated Ally 159 | . . . . . . . 159 147 147 96 . . 10 51 26 50 46 . . . 64 . . . Initial UFD Resources 116 | . . . . . 22 32 32 38 38 38 41 51 51 59 63 83 83 89 89 89 93 93 113 116 Total Orders 10 | . . . . . . . 1 . . 2 . . . . 5 . . . . . 2 . . . STAY 8 | . . . . . . . 1 . . 2 . . . . 3 . . . . . 2 . . . FOLLOW 2 | . . . . . . . . . . . . . . . 2 . . . . . . . . . Ally Attacks 669 | . . . . . . . 247 50 40 61 . . . 17 . 73 170 . . . 11 . . . Total Damage 16710 | . . . . . . . 4937 1083 1215 2540 . . . 558 . 2313 3410 . . . 654 . . . Kills 97 | . . . . . . . 38 9 4 12 . . . 8 . 6 20 . . . . . . . Allies Corrupted 2 | . . . . . . . . . . 1 . . . . . . 1 . . . . . . . Allies Melted . | . . . . . . . . . . . . . . . . . . . . . . . . . Intel | -11 -10 -10 -9 -9 -6 -6 -6 -6 -6 -6 -5 -5 -5 -5 -4 -4 -4 -4 -4 -4 -3 -3 -3 -2 ------- Run | Yrd Mat Sub Rec Scr Fac Gar Ext Cet Arc Hub Fac Was Fac Gar Fac Was Fac Upp Upp War Pro Res Qua Res Active Infowar (turns) 12274 | . 22 . . . 1020 . 1035 . . 570 43 . 1879 6 1875 191 910 757 311 . 557 2162 473 463 Optics 1085 | . . . . . . . . . . . . . 106 . . . . . . . . 43 473 463 Sensors 10834 | . . . . . 769 . 1035 . . 570 . . 1773 4 1873 191 910 751 305 . 557 2025 . 71 Terrain 587 | . . . . . 251 . . . . . . . . . 2 . . . . . . 334 . . T.N.C. 2 | . . . . . . . . . . . . . . 2 . . . . . . . . . . Cloaking 499 | . . . . . . . . . . . . . . . . . . 6 6 . . 120 335 32 Jamming 781 | . . . . . . . . . . . 43 . . . . . . . . . . 47 457 234 ECM 22 | . 22 . . . . . . . . . . . . . . . . . . . . . . . Robot Analysis Total 6 | . 1 . 2 . . . 1 . . . 1 . 1 . . . . . . . . . . . Derelict Logs Recovered 8 | . . 2 . 5 . . . . . . . . . . . . . 1 . . . . . . Drone Launches . | . . . . . . . . . . . . . . . . . . . . . . . . . Drone Recoveries . | . . . . . . . . . . . . . . . . . . . . . . . . . Exploration | -11 -10 -10 -9 -9 -6 -6 -6 -6 -6 -6 -5 -5 -5 -5 -4 -4 -4 -4 -4 -4 -3 -3 -3 -2 ------------- Run | Yrd Mat Sub Rec Scr Fac Gar Ext Cet Arc Hub Fac Was Fac Gar Fac Was Fac Upp Upp War Pro Res Qua Res Turns Passed 29646 | 24 2350 3893 720 1768 1442 533 1918 335 2342 586 485 118 3045 1357 2020 193 954 971 519 124 575 2438 473 463 Spaces Moved 17963 | 6 1004 1652 476 1329 801 265 752 153 289 309 345 94 1849 582 2127 189 1356 578 213 73 385 1935 600 601 Core 33 | . . . . . . . . . . . . . 5 . . . . . . . . 1 . 27 Treads 1130 | 1 138 . . . . . . 39 289 309 . . 1 232 121 . . . . . . . . . Legs 2089 | 5 . . . . 293 265 752 114 . . . . . . . . . . . . . 660 . . Wheels 4831 | . 866 1652 476 1329 508 . . . . . . . . . . . . . . . . . . . Hover 8710 | . . . . . . . . . . . 345 94 1843 350 2006 189 1356 578 213 73 385 1051 77 150 Flight 1170 | . . . . . . . . . . . . . . . . . . . . . . 223 523 424 Fastest Speed 21 | 120 95 145 145 120 108 123 120 120 160 160 98 98 93 104 40 42 42 42 43 48 44 21 33 34 Average Speed 113 | 126 189 206 147 131 123 141 181 171 160 160 98 98 104 161 54 42 42 51 146 130 127 91 58 50 Slowest Speed 1450 | 160 215 210 150 150 200 195 260 190 160 160 102 98 1400 240 160 104 110 217 300 206 206 1450 220 280 Overloaded Moves . | . . . . . . . . . . . . . . . . . . . . . . . . . Propulsion Burnouts . | . . . . . . . . . . . . . . . . . . . . . . . . . Robots Hopped 9 | . . . . . . . . . . . . . . . . . . . . . . . 8 1 Potential Cave-ins 4 | . . . . . . . . . . 2 . . 2 . . . . . . . . . . . Cave-ins Triggered . | . . . . . . . . . . . . . . . . . . . . . . . . . Teleports 1 | . . . . . . . . . . . . . . . . . . . . . . . . 1 Exploration Rate (%) 56 | 2 98 88 77 82 22 48 85 64 87 41 11 80 50 75 49 89 40 61 41 13 60 58 74 14 Regions Visited 24 Branch Regions 12 Pre-discovered Areas 16 | . 3 1 6 2 . . 1 . . . . . 1 . 1 . . 1 . . . . . . Known Exits Taken 14 | . 1 . . . 1 . 1 1 1 1 . . 1 . . . 1 1 1 1 1 1 1 . Unknown Exits Taken 4 | 1 . 1 1 1 . . . . . . . . . . . . . . . . . . . . Scrap Searched 26 | . . 16 . 6 . . . . . . . . . . . . . 2 1 . 1 . . . Spaces Dug 80 | . . 10 . . 9 . . . . 8 . . 15 4 9 . 5 3 . . 4 13 . . Terrain Destroyed 514 | 3 41 28 3 . 20 . 26 3 1 10 9 . 71 16 44 2 65 4 2 . 96 70 . . Melee 15 | . . . . . 7 . . . . 8 . . . . . . . . . . . . . . Projectile 245 | . . 16 3 . 12 . 26 3 1 2 9 . 48 8 20 2 35 4 2 . 7 47 . . AOE 253 | 3 41 12 . . . . . . . . . . 23 8 24 . 30 . . . 89 23 . . Terrain Rammed . | . . . . . . . . . . . . . . . . . . . . . . . . . Walls Destroyed . | . . . . . . . . . . . . . . . . . . . . . . . . . Machines Disabled . | . . . . . . . . . . . . . . . . . . . . . . . . . Actions | -11 -10 -10 -9 -9 -6 -6 -6 -6 -6 -6 -5 -5 -5 -5 -4 -4 -4 -4 -4 -4 -3 -3 -3 -2 --------- Run | Yrd Mat Sub Rec Scr Fac Gar Ext Cet Arc Hub Fac Was Fac Gar Fac Was Fac Upp Upp War Pro Res Qua Res Total 25552 | 14 1359 1989 487 1353 1075 347 1161 205 2131 357 446 113 2764 860 2827 278 1635 1245 419 102 443 2508 707 727 Wait 5234 | . 202 192 3 . 87 26 66 20 1786 10 23 6 657 128 461 49 178 656 202 29 27 272 67 87 Move 17924 | 5 1003 1651 475 1328 801 263 751 152 288 309 345 93 1849 580 2127 188 1355 577 212 72 384 1934 583 599 Hop 9 | . . . . . . . . . . . . . . . . . . . . . . . 8 1 Pick Up 236 | . 30 16 2 10 27 4 8 4 11 1 8 1 28 12 24 4 9 3 . . . 26 7 1 Fast Attach 217 | . 2 6 . . 17 1 17 3 4 . 6 1 21 10 24 6 6 1 1 . 4 66 9 12 Attach 121 | 2 1 5 2 . 21 1 6 2 . . 9 . 17 4 11 1 4 1 . 1 1 25 3 4 Detach 35 | . 1 . . . 2 . 1 . . . 4 . 3 . 1 1 . . 1 . . 18 3 . Swap 180 | . 12 7 . 1 10 3 14 1 6 11 7 2 25 9 21 7 17 3 2 . 3 16 3 . Drop 354 | 2 11 20 2 14 22 . 22 12 13 1 8 . 35 18 50 12 14 1 1 . . 79 15 2 Fire 840 | 5 53 92 3 . 71 39 59 11 9 11 23 9 102 67 107 10 52 3 . . 16 68 9 21 Melee 51 | . . . . . 17 . . . 14 8 . . . 12 . . . . . . . . . . Ram 1 | . . . . . . . . . . . . 1 . . . . . . . . . . . . Kick 2 | . . . . . . . 1 . . . . . . . . . . . . . . 1 . . Crush 1 | . . . . . . . . . . . . . . . 1 . . . . . . . . . Escape Stasis 76 | . . . . . . 9 15 . . . 13 . 26 13 . . . . . . . . . . Rewire 211 | . . . . . . . 197 . . . . . . 6 . . . . . . 8 . . . Trap 47 | . 44 . . . . . . . . . . . . . . . . . . . . 3 . . Miscellaneous 13 | . . . . . . 1 4 . . 6 . . 1 1 . . . . . . . . . . Route ------- -11/Scrapyard -10/Materials (discovered 5 exits: *Mat x3 / *Min / *Sub) -10/Subcaves (discovered 4 exits: *Mat x2 / *Rec / *Scr) -9/Recycling (discovered 2 exits: [*Fac] / *Scr) -9/Scraptown (discovered 2 exits: *Fac x2) -6/Factory (discovered 3 exits: *Low / *Ext / Gar) -6/Garrison -6/Extension (discovered 2 exits: *Fac / *Cet) -6/Cetus (discovered 2 exits: *Fac / *Arc) -6/Archives (discovered 3 exits: *Fac / *Hub x2) -6/Hub_04(d) (discovered 4 exits: *Fac x4) -5/Factory -5/Waste -5/Factory (discovered 7 exits: *Fac x4 / Upp x2 / Gar) -5/Garrison (discovered 3 exits: *Fac x3) -4/Factory (discovered 4 exits: *Res x2 / *Upp x2) -4/Waste -4/Factory (discovered 2 exits: *Res / *Upp) -4/Upper Caves -4/Upper Caves -4/Warlord -3/Proximity Caves -3/Research (discovered 4 exits: *Res x2 / *Arm / *Qua) -3/Quarantine -2/Research (discovered 1 exit: *Acc) History --------- Turn | Location | Event 7 | -11/Scrapyard | Discovered new exit (range 2) 25 | -11/Scrapyard | Entered Materials 311 | -10/Materials | Build established: Mutant 694 | -10/Materials | Repaired Lgt. Armor Plating 708 | -10/Materials | Central database locked down 730 | -10/Materials | Discovered new exit (range 15) 884 | -10/Materials | Discovered new exit (range 13) 940 | -10/Materials | Identified exit to Materials 976 | -10/Materials | Learned location of Mines (-10) 1003 | -10/Materials | Learned Storage emergency access door positions 1018 | -10/Materials | Identified exit to Subcaves 1035 | -10/Materials | Identified exit to Mines 1056 | -10/Materials | Learned location of 1 exit from Storage 2375 | -10/Materials | Entered Subcaves 2375 | -10/Subcaves | Discovered new exit (range 6) 2376 | -10/Subcaves | Approached by a straggling Scientist 2376 | -10/Subcaves | Identified exit to Materials 2531 | -10/Subcaves | Ambushed by angry Subdweller bent on revenge 2764 | -10/Subcaves | Visited 4L-MR0's lab 2790 | -10/Subcaves | Found Cargo Legs 3190 | -10/Subcaves | Shifting Twisted Machinery released Piercing Trap 4079 | -10/Subcaves | A swath of the cavern ceiling suddenly collapsed 5110 | -10/Subcaves | Learned location of Zion (-6) 5541 | -10/Subcaves | Core integrity fell below 50% 5571 | -10/Subcaves | Discovered new exit (range 14) 5629 | -10/Subcaves | Visited Clippyterm 5636 | -10/Subcaves | Learned Factory garrison access intel 5813 | -10/Subcaves | Lost 3 parts (1n1u1w) 5898 | -10/Subcaves | Shifting Twisted Machinery released Flamer 5935 | -10/Subcaves | Shifting Twisted Machinery released Sub. Laser 5958 | -10/Subcaves | Ambushed by Subdwellers from Twisted Machinery 5975 | -10/Subcaves | Core integrity fell below 20% 6268 | -10/Subcaves | Entered Recycling 6522 | -9/Recycling | Build established: Scavenger-Mutant 6634 | -9/Recycling | Discovered new exit (range 15) 6711 | -9/Recycling | Scanned before Scraplab entrance 6824 | -9/Recycling | Build established: Mutant 6972 | -9/Recycling | Entered Scraplab 6984 | -9/Recycling | Discovered new exit (range 2) 6988 | -9/Recycling | Entered Scraptown 6988 | -9/Scraptown | System corruption cleaned by C-Scrubber 7051 | -9/Scraptown | Visited Awakened 7105 | -9/Scraptown | Visited Comm Corps 7143 | -9/Scraptown | Visited UFD Registry 7143 | -9/Scraptown | Registered with UFD as "Novamachine" 7219 | -9/Scraptown | Visited Chapter 10 7240 | -9/Scraptown | Visited LU-1G1's Boring Crew 7315 | -9/Scraptown | Visited Infowarlord's Domain 7335 | -9/Scraptown | Visited Scrap Suit Storage 7350 | -9/Scraptown | Visited Abandonware Association 7371 | -9/Scraptown | Visited Research Penetration Think Tank 7437 | -9/Scraptown | Visited Junk Cannon Lab 7461 | -9/Scraptown | Visited Curators Association 7578 | -9/Scraptown | Visited Cyclists 7618 | -9/Scraptown | Entered Cyclist Reading Room 7651 | -9/Scraptown | Visited Symbiants 7708 | -9/Scraptown | Scanned Subdweller tech in exchange for log data 7711 | -9/Scraptown | Learned 8 Factory zone layouts 7714 | -9/Scraptown | Learned Research stockpile data 7716 | -9/Scraptown | Learned Research terminal intel 7732 | -9/Scraptown | Discovered new exit (range 11) 8290 | -9/Scraptown | Found Exp. Signal Interpreter 8329 | -9/Scraptown | Visited Science Guys 8499 | -9/Scraptown | Learned abandonware demo "POISON.EXE" 8499 | -9/Scraptown | Learned abandonware demo "REBOOT5.EXE" 8541 | -9/Scraptown | Discovered new exit (range 5) 8575 | -9/Scraptown | Found Scrap Suit 8684 | -9/Scraptown | Met Optimus 8684 | -9/Scraptown | Accepted into 0bPrime 8756 | -9/Scraptown | Entered Factory 8756 | -6/Factory | Evolved 8 slots: Propulsion x2, Utility x5, Weapon x1 8757 | -6/Factory | Identified exit to Lower Caves 8758 | -6/Factory | Loaded intel: 4 garrison access locations 9128 | -6/Factory | Loaded intel: 8 recycling unit locations 9292 | -6/Factory | Discovered new exit (range 6) 9295 | -6/Factory | Identified exit to Extension 9563 | -6/Factory | Lost 8 parts (2p2n2u2w) 9578 | -6/Factory | Attached Cargo Legs, gained temporary slots: Utility x2 9962 | -6/Factory | Cargo convoy interrupted 10000 | -6/Factory | Core integrity fell below 50% 10023 | -6/Factory | System corruption reached 10% 10062 | -6/Factory | Destroyed 7 combat bots 10063 | -6/Factory | Lost 7 parts (1p2n3u1w) 10198 | -6/Factory | Identified exit to Garrison 10198 | -6/Factory | Entered Garrison 10280 | -6/Garrison | Installed Relay Interface Framework 10374 | -6/Garrison | Triggered checkpoint 10446 | -6/Garrison | Garrison Relay disabled 10536 | -6/Garrison | Triggered checkpoint 10612 | -6/Garrison | Triggered checkpoint 10699 | -6/Garrison | Build established: Scavenger-Gunner 10718 | -6/Garrison | Discovered exit to Extension (range 11) 10731 | -6/Garrison | Entered Extension 11008 | -6/Extension | Rescued A7 11055 | -6/Extension | Build established: Scavenger-Skirmisher 11333 | -6/Extension | Rescued a captive Derelict 11335 | -6/Extension | Rescued a captive Derelict 11671 | -6/Extension | Build established: Commander-Tank 11835 | -6/Extension | Spotted B-75 Beast 11847 | -6/Extension | Spotted B-75 Beast 11850 | -6/Extension | Allies destroyed B-75 Beast 11861 | -6/Extension | Allies destroyed B-75 Beast 12071 | -6/Extension | Rescued a captive Derelict 12109 | -6/Extension | Rescued a captive Derelict 12109 | -6/Extension | Rescued a captive Derelict 12308 | -6/Extension | Core integrity fell below 20% 12481 | -6/Extension | First assault squad dispatched 12507 | -6/Extension | Loaded intel: 2 recycling unit locations 12507 | -6/Extension | Learned location of Protoforge (-2) 12577 | -6/Extension | Disrupted transfer network 12579 | -6/Extension | Lost 9 allies 12619 | -6/Extension | Discovered new exit (range 10) 12623 | -6/Extension | Discovered new exit (range 6) 12636 | -6/Extension | Identified exit to Factory 12641 | -6/Extension | Identified exit to Cetus 12649 | -6/Extension | Entered Cetus 12649 | -6/Cetus | Accompanied by 7 allies (A7) 12654 | -6/Cetus | Acquired a Cetus Manufacturing Module code from A7 12669 | -6/Cetus | Spotted Cetus Guard 12669 | -6/Cetus | Spotted Cetus Guard 12673 | -6/Cetus | Spotted Cetus Guard 12674 | -6/Cetus | Allies destroyed Cetus Guard 12674 | -6/Cetus | Spotted Cetus Guard 12676 | -6/Cetus | Allies destroyed Cetus Guard 12677 | -6/Cetus | Allies destroyed Cetus Guard 12681 | -6/Cetus | Allies destroyed Cetus Guard 12769 | -6/Cetus | Started Cetus Manufacturing Module 12794 | -6/Cetus | Manufactured an Enhanced Grunt 12813 | -6/Cetus | Discovered new exit (range 16) 12819 | -6/Cetus | Manufactured an Enhanced Grunt 12844 | -6/Cetus | Manufactured an Enhanced Grunt 12846 | -6/Cetus | Spotted Cetus Guard 12847 | -6/Cetus | Spotted Cetus Guard 12851 | -6/Cetus | Spotted Cetus Guard 12852 | -6/Cetus | Spotted Cetus Guard 12858 | -6/Cetus | Destroyed Cetus Guard 12865 | -6/Cetus | Allies destroyed Cetus Guard 12869 | -6/Cetus | Manufactured an Enhanced Grunt 12869 | -6/Cetus | Allies destroyed Cetus Guard 12871 | -6/Cetus | Allies destroyed Cetus Guard 12883 | -6/Cetus | Discovered exit to Factory (range 16) 12894 | -6/Cetus | Manufactured an Enhanced Grunt 12894 | -6/Cetus | Met Revision 17 12960 | -6/Cetus | Identified exit to Archives 12984 | -6/Cetus | Entered Archives 12984 | -6/Archives | Accompanied by 11 allies (A7) 13053 | -6/Archives | Found Prototype Device 13053 | -6/Archives | Identified Exp. Thermal Shield 13056 | -6/Archives | Lost 4 allies 13157 | -6/Archives | Discovered new exit (range 13) 13215 | -6/Archives | Discovered new exit (range 16) 13341 | -6/Archives | Build established: Scavenger-Mutant 13593 | -6/Archives | Discovered exit to Factory (range 16) 15309 | -6/Archives | Identified exit to Hub_04(d) 15326 | -6/Archives | Entered Hub_04(d) 15326 | -6/Hub_04(d) | Accompanied by 6 allies 15479 | -6/Hub_04(d) | Garrison activated, responded to threat 15728 | -6/Hub_04(d) | Lost 3 allies 15852 | -6/Hub_04(d) | Network Hub disabled 15873 | -6/Hub_04(d) | Spotted Lightning 15890 | -6/Hub_04(d) | Spotted Lightning 15893 | -6/Hub_04(d) | Spotted Lightning 15912 | -6/Hub_04(d) | Entered Factory 15912 | -5/Factory | Evolved 2 slots: Propulsion x2 16299 | -5/Factory | Loaded intel: 8 recycling unit locations 16378 | -5/Factory | Lost 3 parts (1n1u1w) 16397 | -5/Factory | Sucked down chute 16397 | -5/Factory | Entered Waste 16412 | -5/Waste | EMP discharged 16412 | -5/Waste | System corruption reached 10% 16421 | -5/Waste | Spotted C-40 Crusher 16423 | -5/Waste | Spotted C-40 Crusher 16439 | -5/Waste | Spotted C-40 Crusher 16455 | -5/Waste | Spotted C-40 Crusher 16461 | -5/Waste | Spotted C-40 Crusher 16482 | -5/Waste | Spotted C-40 Crusher 16500 | -5/Waste | Discovered new exit (range 16) 16512 | -5/Waste | EMP discharged 16514 | -5/Waste | Identified exit to Factory 16515 | -5/Waste | Entered Factory 16663 | -5/Factory | Build established: Scavenger-Tank 16838 | -5/Factory | Lost 4 parts (1p2n1u) 17068 | -5/Factory | Fabricated Imp. System Restoration Module (x2) 17758 | -5/Factory | Repaired Centrium Medium Armor Plating 17816 | -5/Factory | Repaired Centrium Medium Armor Plating 17944 | -5/Factory | Build established: Scavenger-Skirmisher 17998 | -5/Factory | Watched by a mysterious "MATRIX" hacker. 18438 | -5/Factory | Lost 3 parts (3n) 18481 | -5/Factory | Central database locked down 18585 | -5/Factory | Loaded intel: 8 recycling unit locations 18761 | -5/Factory | Discovered new exit (range 10) 18769 | -5/Factory | Identified exit to Factory 19085 | -5/Factory | Identified exit to Upper Caves 19133 | -5/Factory | Fabricated Antigrav System (x2) 19191 | -5/Factory | Learned Armory garrison access intel 19250 | -5/Factory | Learned Extension security intel 19297 | -5/Factory | Learned Extension stockpile data 19385 | -5/Factory | Learned 2 Proximity Caves zone layouts 19446 | -5/Factory | Learned location of 1 exit from Armory 19560 | -5/Factory | Identified exit to Garrison 19560 | -5/Factory | Entered Garrison 19692 | -5/Garrison | Phase Generator disabled 19791 | -5/Garrison | Garrison Relay disabled 19830 | -5/Garrison | Triggered checkpoint 19870 | -5/Garrison | Discovered exit to Factory (range 48) 19870 | -5/Garrison | Discovered exit to Factory (range 46) 19870 | -5/Garrison | Discovered exit to Factory (range 52) 19898 | -5/Garrison | Triggered checkpoint 19945 | -5/Garrison | Triggered checkpoint 20052 | -5/Garrison | Found Unknown Device 20052 | -5/Garrison | Identified Quantum Capacitor 20119 | -5/Garrison | Build established: Scavenger-Tank 20203 | -5/Garrison | Core integrity fell below 50% 20457 | -5/Garrison | Expanded RIF knowledge: Zone Cloak 20606 | -5/Garrison | Triggered checkpoint 20917 | -5/Garrison | Entered Factory 20917 | -4/Factory | Evolved 2 slots: Power x1, Propulsion x1 21004 | -4/Factory | Central database locked down 21153 | -4/Factory | Loaded intel: 8 recycling unit locations 21303 | -4/Factory | Discovered new exit (range 15) 21309 | -4/Factory | Identified exit to Upper Caves 21406 | -4/Factory | Repaired Centrium Heavy Treads 21411 | -4/Factory | Build established: Scavenger-Mutant 21976 | -4/Factory | Discovered new exit (range 14) 21987 | -4/Factory | Identified exit to Research 22043 | -4/Factory | Build established: Scavenger-Skirmisher 22104 | -4/Factory | Discovered exit to Research (range 6) 22145 | -4/Factory | Found Prototype Device 22145 | -4/Factory | Identified Adv. EM Shield 22296 | -4/Factory | Learned 4 Proximity Caves zone layouts 22421 | -4/Factory | Learned location of 1 exit from Upper Caves 22441 | -4/Factory | Learned location of 1 exit from Research 22471 | -4/Factory | Fabricated Adv. Cooling System (x2) 22935 | -4/Factory | Noticed a derelict Sapper rigging charges 22937 | -4/Factory | Sucked down chute 22937 | -4/Factory | Entered Waste 22942 | -4/Waste | Spotted C-40 Crusher 22946 | -4/Waste | Warlord forces began an assault 22948 | -4/Waste | Allies destroyed C-40 Crusher 22994 | -4/Waste | Spotted C-40 Crusher 23001 | -4/Waste | Destroyed C-40 Crusher 23004 | -4/Waste | Spotted C-40 Crusher 23006 | -4/Waste | Found Unknown Device 23006 | -4/Waste | Identified Adv. Force Booster 23010 | -4/Waste | Spotted C-40 Crusher 23015 | -4/Waste | Allies destroyed C-40 Crusher 23023 | -4/Waste | Found Prototype Reactor 23023 | -4/Waste | Identified Vortex Chain Reactor 23045 | -4/Waste | Spotted C-40 Crusher 23054 | -4/Waste | Allies destroyed C-40 Crusher 23069 | -4/Waste | Discovered new exit (range 10) 23077 | -4/Waste | Identified exit to Factory 23130 | -4/Waste | Entered Factory 23130 | -4/Factory | Accompanied by 13 allies 23165 | -4/Factory | Central database locked down 23260 | -4/Factory | Targeted by mysterious "MATRIX" hacker. 23292 | -4/Factory | Loaded intel: 8 recycling unit locations 23380 | -4/Factory | First assault squad dispatched 23501 | -4/Factory | Garrison activated, responded to threat 23850 | -4/Factory | Discovered exit to Research (range 14) 23948 | -4/Factory | High security lockdown imminent 24028 | -4/Factory | High security lockdown engaged 24050 | -4/Factory | Spotted B-86 Titan 24084 | -4/Factory | Entered Upper Caves 24085 | -4/Upper Caves | Identified exit to Upper Caves 24094 | -4/Upper Caves | Lost 4 parts (1p2n1u) 24997 | -4/Upper Caves | Attracted the attention of an 0b10 checkpoint 25055 | -4/Upper Caves | Entered another Upper Caves area 25477 | -4/Upper Caves | Spotted B-86 Titan 25546 | -4/Upper Caves | Discovered new exit (range 15) 25571 | -4/Upper Caves | Identified exit to Warlord 25574 | -4/Upper Caves | Entered Warlord 25610 | -4/Warlord | System corruption cleaned by Quarantine Array 25658 | -4/Warlord | Discovered new exit (range 14) 25685 | -4/Warlord | Identified exit to Proximity Caves 25698 | -4/Warlord | Entered Proximity Caves 25768 | -3/Proximity Caves | Build established: Scavenger-Mutant 25830 | -3/Proximity Caves | Spotter reported a threat 25865 | -3/Proximity Caves | Attracted the attention of an 0b10 outpost 25897 | -3/Proximity Caves | Destroyed 9 combat bots 26035 | -3/Proximity Caves | Spotter reported a threat 26066 | -3/Proximity Caves | Spotter reported a threat 26160 | -3/Proximity Caves | Spotted B-86 Titan 26216 | -3/Proximity Caves | Spotter reported a threat 26273 | -3/Proximity Caves | Entered Research 26273 | -3/Research | Evolved 2 slots: Utility x2 26274 | -3/Research | Identified exit to Armory 26275 | -3/Research | Identified exit to Research 26277 | -3/Research | Loaded intel: 21 terminal locations 26283 | -3/Research | Central database locked down 26299 | -3/Research | Lost 4 parts (1p2u1w) 26412 | -3/Research | Found Quantum Capacitor 26473 | -3/Research | Revision forces began assault on 0b10 26503 | -3/Research | Loaded intel: 5 recycling unit locations 26511 | -3/Research | Met up with Revision 17++ 26696 | -3/Research | Fabricated Enh. Nova Cannon (x2) 26751 | -3/Research | Fabricated Imp. Linear Gravjet (x2) 26973 | -3/Research | Research terminal network offline 27008 | -3/Research | Lost 3 allies 27149 | -3/Research | Build established: Scavenger-Tank 27233 | -3/Research | Fabricated Imp. Linear Gravjet? 27777 | -3/Research | Found Fusion Bomb Launcher 27779 | -3/Research | Found Fusion Bomb Launcher 27806 | -3/Research | Found Prototype Device 27806 | -3/Research | Identified Exp. EM Disruption Field 27931 | -3/Research | Lost 4 parts (3n1w) 28549 | -3/Research | Spotted Striker 28579 | -3/Research | Core integrity fell below 50% 28584 | -3/Research | Destroyed Striker 28605 | -3/Research | Lost 8 parts (1p1n5u1w) 28685 | -3/Research | Discovered exit to Research (range 20) 28700 | -3/Research | Discovered new exit (range 20) 28711 | -3/Research | Identified exit to Quarantine 28711 | -3/Research | Entered Quarantine 28717 | -3/Quarantine | Found Alien Artifact 28721 | -3/Quarantine | Found Alien Artifact 28723 | -3/Quarantine | Found Alien Artifact 28836 | -3/Quarantine | Found Alien Artifact 28836 | -3/Quarantine | Identified Phase Armor 28939 | -3/Quarantine | Discovered exit to Research (range 20) 28994 | -3/Quarantine | Identified Hpw. Transdimensional Reconstructor (x2) 29021 | -3/Quarantine | Found Alien Reactor 29021 | -3/Quarantine | Identified Matter Drive 29033 | -3/Quarantine | Found Alien Energy Cannon 29033 | -3/Quarantine | Identified Core Cannon 29044 | -3/Quarantine | Found Spectral Analyzer 29098 | -3/Quarantine | Found Alien Artifact 29098 | -3/Quarantine | Identified Subatomic Replicator 29123 | -3/Quarantine | Build established: Hacker-Mutant 29184 | -3/Quarantine | Entered Research 29184 | -2/Research | Evolved 2 slots: Propulsion x1, Utility x1 29210 | -2/Research | Discovered new exit (range 8) 29219 | -2/Research | Identified exit to Access 29247 | -2/Research | Fabricated Imp. Linear Gravjet? 29295 | -2/Research | Lost 3 parts (3u) 29426 | -2/Research | System corruption reached 10% 29504 | -2/Research | Warped through subspace 29504 | -2/Research | Spotted B-90 Cyclops 29548 | -2/Research | Lost 15 parts (3p6n3u3w) 29600 | -2/Research | Core integrity fell below 50% 29635 | -2/Research | Core integrity fell below 20% 29647 | -2/Research | Destroyed by P-80 Master with Gamma Rifle Last Messages --------------- 29612_ Subatomic Condenser disabled. 29612_ U-05 Engineer builds a Door. 29615_ K-01 Serf collects debris. 29619_ 4Y/MD%MW7LM D4H 29639_ Slug penetrates Wall. 29642_ Acquired Prototype Flight Unit. 29642_ Identified Cld. Impulse Thruster. 29643_ Slug penetrates Door. 29643_ Slug penetrates Wall. 29644_ Acquired Cld. Impulse Thruster. 29647_ Slug penetrates Wall. [Achievement: I Was Wrong!] Map ----- +----------------------------------------------------+ | # ######+#??????????????????????? | | # " #?????????????????????????????? | | !# "F"" #?????????????????????????????? | | " / """" #?????????????????????????????? | | " # #?????????????????#???????????? | | " # +????????????????? ??????????? | | # #????????????????? ??????????? | | = # ###+####????????????????? ??????????# | | ######## # #?????????????????? ??????????# | | # # #?????????????????? ??????????# | | + # ###############???? ??????????# | | """" # # ## #???##+#?????????# | | """" # # ?#[[[ #???# #?????????# | | """" ?# # ?# #???# #?????????# | | """" ?# #? ??#[[ #???# +?????????? | | """"??# #? ??# #???# #?????????? | | ??# ###+#+## #??## #########?? | | ???# # #??# ### | | ####???# # """ " #??# | | ???????# + """" #??# | | ???????# # " " #??# | | ???????# ######## #??# | | ???????# #??????# #??# | | ???????# ############;######+##?# """ | | ???????# % ### << | | ???????# @ p | | ???????# m | | ???????# k | | ???????########+###### = | | ????????????? #???# ! << | | ??????????? #???# =! << | | ????????? """ #???# | | ???????# """ #???# | | ???????# """ #???# h | | ???????# #???# ### | | ???????# #???###############h ########?? | | ???????# #?????????????????# #????????? | | ???????###########?????????????????# #????????? | | ???????????????????????????????????+ + ???????? | | ???????????????????????????????????# # ?????? | | ???????????????????????????????????# # ??????? | | ???????????????????????????????????# #? ?????? | | ???????????????????????????????????# #? ?????? | | ???????????????????????????????????# #????????? | | ???????????????????????????????????? #????????? | | ???????????????????????????????????? #????????? | | ???????????????????????????????????? #????????? | | ???????????????????????????????????? #????????? | | ?????????????????????????????????????????????????? | | ?????????????????????????????????????????????????? | +----------------------------------------------------+ Best States ------------- Heat Dissipation 98 Coolant Potential 65 Energy Generation 55 Energy Capacity 1340 Matter Stores 300 Matter Capacity 300 Sight Range 24 Robot Scan Range 18 Terrain Scan Range 24 Terrain Scan Density 10 ECM Strength 1 Jamming Range 12 Cloak Strength 4 Additional Mass Support 20 Base Temperature (-) 150 Corruption Containment 8 Armor Coverage 1200 Resistance: TH 30 Propulsion Shielding 66 Weapon Shielding 66 Phase Shifting 15 Evasion (%) 78 Targeting Accuracy 8 Recoil Reduction 7 Matter Filtering 30 Particle Charging 20 Offensive Hacking 40 Defensive Hacking 24 Relay Coupler Types 1 Relay Coupler Value 35 Item Schematics ----------------- Kinecellerator | -9/Recycling | Hacked Imp. System Restoration Module | -5/Factory | Hacked Centrium Medium Armor Plating | -5/Factory | Scanalyzed Antigrav System | -5/Factory | Scanalyzed Adv. Cooling System | -5/Factory | Hacked Adv. Target Analyzer | -5/Factory | Hacked Imp. Linear Gravjet | -4/Factory | Scanalyzed Adv. Phase Shifter | -4/Factory | Scanalyzed Adv. Energy Well | -4/Factory | Scanalyzed Adv. Cloaking Device | -4/Factory | Scanalyzed HERF Cannon | -4/Factory | Scanalyzed Cmb. Linear Gravjet | -2/Research | Hacked Robot Schematics ------------------ None Fabricated ------------ Imp. System Restoration Module | x2 | -5/Factory Antigrav System | x2 | -5/Factory Adv. Cooling System | x2 | -4/Factory Enh. Nova Cannon | x2 | -3/Research | Preloaded Imp. Linear Gravjet | x2 | -3/Research Imp. Linear Gravjet | x2 | -3/Research Imp. Linear Gravjet | x2 | -2/Research Repaired ---------- Lgt. Armor Plating | 71% | -10/Materials Centrium Medium Armor Plating | 18% | -5/Factory Centrium Medium Armor Plating | 19% | -5/Factory Centrium Heavy Treads | 46% | -4/Factory Studied --------- Gravmag System | -5/Factory | Hacked Imp. Gravmag System | -5/Factory | Hacked Neutrino Core | -5/Factory | Hacked Antigrav System | -5/Factory | Hacked Adv. Plasma Cannon | -5/Factory | Hacked Cmb. Gravmag System | -4/Factory | Hacked Imp. Heavy Treads | -4/Factory | Hacked Proton Missile Launcher | -4/Factory | Hacked Imp. Linear Gravjet | -4/Factory | Hacked Imp. Antigrav System | -3/Research | Hacked Impulse Thruster Array | -3/Quarantine | Hacked Xenon Bombardment Thruster | -3/Quarantine | Hacked Cmb. Antigrav System | -3/Quarantine | Hacked HERF Cannon | -3/Quarantine | Hacked Lgt. Antimatter Reactor | -3/Quarantine | Hacked Lgt. Particle Reactor | -3/Quarantine | Hacked Alien Tech Used ----------------- Phase Armor Matter Drive Core Cannon Subatomic Replicator High-powered Transdimensional Reconstructor Achievements -------------- I Was Wrong! May I Have Another? Taming Of The Crushers Challenges ------------ None Game ------ Seed DrainedBoltFalx Manual? 0 Play Time 04:54:39 Cumulative 399.6 hours Start 2026.04.08 @ 02:19:56 End 2026.04.09 @ 04:30:54 Sessions 7 Manual Loads 0 Difficulty Rogue Special Mode None Game No. 338 Rogue 302 Adventurer 36 Explorer 0 Win Type - Total 5 Types 2/0/0/1/0/0/0/2/0/0 Lore% 75 Gallery% 67 Achievement% 56 Wizard Run 0 Options --------- Layout 1 ASCII 0 Keyboard 0 Movement Numpad Keybinds 0 Fullscreen 1 Font 48/Smallcaps Map View 50x35 Zoom Use 0% Tactical HUD 1 Map Filters NONE Filters NONE Steam 1 RUN: 57c7faac-4e6f-4b9c-884a-6c2d2a66890b